bitfinex-derivatives/quotes_SOLF0:USTF0_20250320
["timestamp","ask_amount","ask_price","bid_price","bid_amount"]
[1742436442735,7.4907,133.47,133.45,27.24]
[1742436443142,7.54340435,133.47,133.45,27.29468761]
[1742436445144,7.4912,133.46,133.45,27.29468761]
[1742436445439,0.05270435,133.47,133.38,275.57459162]
[1742436445640,16.97459162,133.47,133.39,27.24]
[1742436446545,16.97459162,133.47,133.39,34.735]
[1742436446742,0.05202133,133.44,133.42,0.05065334]
[1742436447045,0.05202133,133.44,133.42,27.29065334]
[1742436448335,0.05202133,133.44,133.43,16.97459162]
[1742436448539,258.7,133.49,133.43,16.97459162]
[1742436448940,7.4903,133.48,133.43,24.46749162]
[1742436449647,7.4903,133.48,133.44,7.4922]
[1742436449842,0.04827406,133.47,133.45,27.24]
[1742436450342,0.04827406,133.47,133.45,44.2692156]
[1742436451547,0.04827406,133.47,133.46,7.4912]
[1742436453549,258.56,133.54,133.48,7.4896]
[1742436453745,258.56,133.54,133.49,27.24]
[1742436453952,2.0831,133.56,133.49,44.21459162]
[1742436454448,7.4865,133.55,133.51,7.4879]
[1742436454754,0.05234515,133.54,133.52,27.24]
[1742436456656,4.0916,133.6,133.53,16.97459162]
[1742436457045,2.0423,133.6,133.55,16.97459162]
[1742436457250,258.46,133.63,133.56,27.22]
[1742436457452,2.0493,133.64,133.56,27.22]
[1742436457453,4.0916,133.64,133.57,16.97459162]
[1742436457656,21.06619162,133.64,133.56,27.22]
[1742436457854,0.04847792,133.62,133.59,0.05056833]
[1742436458454,7.4833,133.6,133.59,0.05056833]
[1742436460560,7.4833,133.6,133.59,27.27056833]
[1742436463860,7.4833,133.6,133.59,0.05056833]
[1742436468663,7.4829,133.61,133.59,0.05056833]
[1742436468863,0.04847792,133.62,133.59,0.05056833]
[1742436469261,7.4828,133.61,133.6,27.2]
[1742436472262,7.4833,133.6,133.59,0.05056833]
[1742436474382,0.04847792,133.62,133.59,0.05056833]
[1742436475574,7.4833,133.6,133.59,0.05056833]
[1742436477673,7.4829,133.61,133.59,0.05056833]
[1742436477871,0.04847792,133.62,133.59,0.05056833]
[1742436478867,0.04847792,133.62,133.59,7.53416833]
[1742436479373,7.53077792,133.62,133.59,7.53416833]
[1742436480273,7.53077792,133.62,133.59,0.05056833]
[1742436481268,7.4828,133.61,133.59,0.05056833]
[1742436481467,0.04847792,133.62,133.59,0.05056833]
[1742436481866,7.4833,133.6,133.59,0.05056833]
[1742436482670,7.4829,133.61,133.59,0.05056833]
[1742436482873,0.04847792,133.62,133.59,0.05056833]
[1742436483262,7.4833,133.6,133.59,0.05056833]
[1742436485871,0.04847792,133.62,133.59,44.22515995]
[1742436486472,7.53077792,133.62,133.59,44.22515995]
[1742436487079,0.04847792,133.62,133.59,27.25056833]
[1742436487377,10.8901835,133.62,133.59,0.05056833]
[1742436487577,10.84170558,133.6,133.54,10.84170558]
[1742436487778,10.84170558,133.58,133.53,10.84170558]
[1742436488172,7.4862,133.55,133.54,10.39401056]
[1742436488373,10.84170558,133.58,133.54,10.39401056]
[1742436488782,0.0534964,133.57,133.55,0.05469857]
[1742436488980,7.5387964,133.57,133.55,0.05469857]
[1742436489571,0.0534964,133.57,133.55,27.25469857]
[1742436489976,0.0534964,133.57,133.55,0.05469857]
[1742436490179,7.4856,133.56,133.55,0.05469857]
[1742436491476,7.4856,133.56,133.53,27.2]
[1742436491783,7.5386964,133.57,133.53,27.2]
[1742436492578,0.0534964,133.57,133.54,0.05117577]
[1742436494184,7.4859,133.56,133.54,0.05117577]
[1742436494883,7.5387964,133.57,133.54,0.05117577]
[1742436495386,7.4861,133.55,133.54,0.05117577]
[1742436495886,7.4876,133.53,133.49,68.55797749]
[1742436496087,2.0357,133.54,133.49,27.2]
[1742436496687,4.0563,133.54,133.49,27.2]
[1742436496885,0.0542532,133.53,133.5,0.05213882]
[1742436497490,7.5417532,133.53,133.5,0.05213882]
[1742436499192,7.5417532,133.53,133.5,7.54103882]
[1742436500491,7.5417532,133.53,133.5,0.05213882]
[1742436500993,0.0542532,133.53,133.5,0.05213882]
[1742436502292,7.5418532,133.53,133.5,0.05213882]
[1742436503292,0.0542532,133.53,133.5,0.05213882]
[1742436504087,0.0542532,133.53,133.51,7.488]
[1742436504289,0.0542532,133.53,133.52,27.2]
[1742436505990,0.0542532,133.53,133.5,27.25213882]
[1742436506591,0.0542532,133.53,133.5,0.05213882]
[1742436508494,7.4881,133.52,133.5,0.05213882]
[1742436510500,0.0542532,133.53,133.5,0.05213882]
[1742436512096,7.5418532,133.53,133.5,7.54083882]
[1742436515007,7.5418532,133.53,133.5,0.05213882]
[1742436517614,7.5418532,133.53,133.5,7.54093882]
[1742436518107,0.0542532,133.53,133.51,10.85582534]
[1742436519111,0.0542532,133.53,133.51,18.34412534]
[1742436520812,0.0542532,133.53,133.51,10.85582534]
[1742436521412,0.0542532,133.53,133.5,0.05213882]
[1742436522318,0.0542532,133.53,133.5,7.54093882]
[1742436522614,0.0542532,133.53,133.5,18.39676416]
[1742436524212,7.5415532,133.53,133.5,18.39676416]
[1742436524714,7.5415532,133.53,133.5,7.54093882]
[1742436527411,7.5415532,133.53,133.5,34.74093882]
[1742436539116,7.5415532,133.53,133.51,7.4883]
[1742436540021,0.0542532,133.53,133.51,7.4883]
[1742436540314,0.0542532,133.53,133.52,7.4878]
[1742436540720,282.73045394,133.58,133.55,7.4859]
[1742436540917,280.68515394,133.58,133.55,7.4859]
[1742436541116,266.07656464,133.58,133.55,7.4859]
[1742436541618,260.4602,133.58,133.54,18.34232534]
[1742436541820,260.5174622,133.58,133.55,0.04842027]
[1742436542622,7.4854,133.57,133.55,0.04842027]
[1742436542824,258.4372622,133.58,133.55,0.04842027]
[1742436543023,258.4372622,133.58,133.56,10.85582534]
[1742436543224,0.0572622,133.58,133.56,10.85582534]
[1742436543522,0.0572622,133.58,133.56,38.05582534]
[1742436544126,0.0572622,133.58,133.56,45.54122534]
[1742436544829,7.5417622,133.58,133.56,38.05582534]
[1742436545527,0.0572622,133.58,133.56,38.05582534]
[1742436545728,0.0572622,133.58,133.56,45.54122534]
[1742436547735,0.0572622,133.58,133.57,7.485]
[1742436550335,0.0572622,133.58,133.56,38.05582534]
[1742436551734,0.0572622,133.58,133.56,45.54132534]
[1742436552125,0.0572622,133.58,133.57,7.485]
[1742436552328,0.0572622,133.58,133.56,38.05582534]
[1742436553341,0.0572622,133.58,133.55,27.24842027]
[1742436553637,0.0572622,133.58,133.55,0.04842027]
[1742436553838,7.4856,133.56,133.55,0.04842027]
[1742436554035,0.0572622,133.58,133.55,10.90424561]
[1742436554340,7.5420622,133.58,133.55,10.90424561]
[1742436554739,0.0572622,133.58,133.55,10.90424561]
[1742436555440,7.4851,133.57,133.55,10.90424561]
[1742436555639,0.0572622,133.58,133.55,10.90424561]
[1742436555833,0.0572622,133.58,133.57,10.85582534]
[1742436556039,0.0572622,133.58,133.57,45.52082534]
[1742436556238,7.4825,133.62,133.57,38.03582534]
[1742436556438,7.4825,133.62,133.59,10.85582534]
[1742436556742,7.4825,133.62,133.61,10.85582534]
[1742436557639,7.53599207,133.63,133.61,10.85582534]
[1742436558444,7.4822,133.62,133.61,10.85582534]
[1742436560740,7.4828,133.61,133.6,27.23148218]
[1742436560948,7.4828,133.61,133.6,0.05148218]
[1742436568051,7.4825,133.62,133.6,0.05148218]
[1742436568458,7.53599207,133.63,133.61,10.85582534]
[1742436569058,0.05419207,133.63,133.61,10.85582534]
[1742436569249,0.05419207,133.63,133.61,38.03582534]
[1742436570456,0.05419207,133.63,133.62,7.4822]
[1742436571255,0.05419207,133.63,133.61,38.03582534]
[1742436571256,0.05419207,133.63,133.61,45.51842534]
[1742436572261,0.05419207,133.63,133.61,38.03582534]
[1742436572952,7.53619207,133.63,133.61,38.03582534]
[1742436573157,0.05419207,133.63,133.61,38.03582534]
[1742436574263,0.05419207,133.63,133.61,45.51822534]
[1742436574662,7.53599207,133.63,133.61,38.03582534]
[1742436575763,0.05419207,133.63,133.61,38.03582534]
[1742436577755,7.53589207,133.63,133.61,38.03582534]
[1742436578069,0.05419207,133.63,133.61,38.03582534]
[1742436578463,7.4822,133.62,133.61,38.03582534]
[1742436579664,7.53609207,133.63,133.61,38.03582534]
[1742436579967,0.05419207,133.63,133.61,38.03582534]
[1742436580367,0.05419207,133.63,133.61,45.51852534]
[1742436580569,0.05419207,133.63,133.61,38.03582534]
[1742436580863,0.05419207,133.63,133.6,0.05148218]
[1742436581069,7.4828,133.61,133.6,0.05148218]
[1742436583467,7.4824,133.62,133.6,0.05148218]
[1742436584969,0.05419207,133.63,133.6,0.05148218]
[1742436586066,7.4828,133.61,133.6,0.05148218]
[1742436590975,7.4824,133.62,133.6,0.05148218]
[1742436593770,7.4828,133.61,133.6,0.05148218]
[1742436597673,7.4845,133.58,133.57,27.18]
[1742436599472,7.485,133.57,133.56,0.05470491]
[1742436601577,10.85582534,133.58,133.52,10.39401056]
[1742436601774,10.85582534,133.58,133.52,37.57401056]
[1742436602167,7.4872,133.54,133.52,10.39401056]
[1742436602571,0.05421426,133.54,133.52,10.44244374]
[1742436602980,0.05421426,133.54,133.52,0.04843318]
[1742436603280,7.54131426,133.54,133.52,0.04843318]
[1742436603480,0.05421426,133.54,133.52,0.04843318]
[1742436604168,0.05421426,133.54,133.52,7.53593318]
[1742436604374,0.05421426,133.54,133.53,10.85582534]
[1742436604681,285.38,133.62,133.53,10.85582534]
[1742436604882,258.2,133.62,133.56,10.85582534]
[1742436605072,7.4829,133.61,133.57,34.6647]
[1742436605272,258.2,133.62,133.58,10.85582534]
[1742436605479,1.9378,133.63,133.6,10.85582534]
[1742436605681,0.04771698,133.61,133.6,38.03582534]
[1742436607884,0.04771698,133.61,133.6,27.18]
[1742436608580,0.04771698,133.61,133.59,0.05489081]
[1742436610485,0.04771698,133.61,133.59,7.53859081]
[1742436610991,0.04771698,133.61,133.6,10.85582534]
[1742436611686,0.04771698,133.61,133.6,18.33912534]
[1742436616687,9.4704,133.66,133.63,10.85582534]
[1742436616881,9.4704,133.66,133.63,38.01582534]
[1742436617282,7.4802,133.66,133.63,38.01582534]
[1742436617681,7.52993435,133.66,133.63,38.06533365]
[1742436618087,7.4806,133.65,133.63,38.06533365]
[1742436618487,0.04973435,133.66,133.63,38.06533365]
[1742436618791,7.4805,133.65,133.63,38.06533365]
[1742436620090,0.04973435,133.66,133.63,38.06533365]
[1742436620291,10.90555969,133.66,133.63,0.04950831]
[1742436620984,7.4811,133.64,133.63,0.04950831]
[1742436624294,18.33692534,133.64,133.63,0.04950831]
[1742436624492,10.85582534,133.64,133.59,27.16]
[1742436624695,10.85582534,133.62,133.59,27.16]
[1742436624891,10.85582534,133.62,133.56,10.85582534]
[1742436625097,10.85582534,133.6,133.57,27.16]
[1742436625493,7.4845,133.58,133.57,27.2142472]
[1742436625689,7.4845,133.58,133.57,0.0542472]
[1742436625894,18.34032534,133.58,133.57,0.0542472]
[1742436626799,7.4861,133.55,133.54,37.55401056]
[1742436626987,7.4861,133.55,133.54,10.39401056]
[1742436628200,7.53395145,133.56,133.54,10.39401056]
[1742436628395,7.53395145,133.56,133.53,0.05553818]
[1742436628797,7.4862,133.55,133.53,0.05553818]
[1742436630002,7.53395145,133.56,133.53,0.05553818]
[1742436630698,0.04815145,133.56,133.54,10.85582534]
[1742436630903,7.64137464,133.64,133.55,27.16]
[1742436631201,7.481,133.65,133.61,18.33832534]
[1742436631397,10.85582534,133.66,133.62,27.16]
[1742436631903,7.4811,133.64,133.62,27.16]
[1742436632100,7.4811,133.64,133.63,0.0553645]
[1742436633004,18.33692534,133.64,133.63,0.0553645]
[1742436633299,24.41874186,133.64,133.63,0.0553645]
[1742436633505,16.93764186,133.64,133.59,27.16]
[1742436633701,0.05102378,133.65,133.59,27.16]
[1742436634300,16.93764186,133.64,133.59,27.16]
[1742436634602,16.93764186,133.64,133.6,0.04992412]
[1742436634905,44.09764186,133.64,133.6,0.04992412]
[1742436635105,46.18044186,133.64,133.6,0.04992412]
[1742436635508,46.18044186,133.64,133.57,27.16]
[1742436636402,16.93764186,133.62,133.56,27.16]
[1742436636910,7.4842,133.59,133.58,0.05709223]
[1742436638913,7.4861,133.55,133.54,27.16]
[1742436639111,287.372,133.61,133.49,92.40413223]
[1742436639112,27.16,133.56,133.49,92.40413223]
[1742436640216,7.4882,133.52,133.51,0.04907012]
[1742436641415,7.4895,133.49,133.48,41.35797749]
[1742436641616,27.16,133.49,133.47,118.40201304]
[1742436642117,7.4901,133.48,133.47,118.40201304]
[1742436642513,27.16,133.49,133.47,118.40201304]
[1742436642717,27.16,133.49,133.47,135.3396549]
[1742436642718,0.05335584,133.49,133.47,135.3396549]
[1742436642922,320.0,133.54,133.47,135.3396549]
[1742436643117,260.1875,133.55,133.47,135.3396549]
[1742436643707,260.1875,133.55,133.49,16.93764186]
[1742436643913,260.1875,133.55,133.5,27.18]
[1742436644115,0.05122074,133.53,133.51,0.05602167]
[1742436644620,0.05122074,133.53,133.52,7.4878]
[1742436646321,0.05122074,133.53,133.51,0.05602167]
[1742436646526,0.05122074,133.53,133.51,27.23602167]
[1742436649420,0.05122074,133.53,133.51,44.17366353]
[1742436649820,0.05122074,133.53,133.52,7.4878]
[1742436654524,0.05122074,133.53,133.51,51.66186353]
[1742436654726,0.05122074,133.53,133.51,34.72422167]
[1742436655425,0.05122074,133.53,133.51,27.23602167]
[1742436655619,0.05122074,133.53,133.52,7.4878]
[1742436656022,0.05122074,133.53,133.51,34.72432167]
[1742436656229,0.05122074,133.53,133.51,27.23602167]
[1742436656620,0.05122074,133.53,133.52,7.4878]
[1742436656826,258.32,133.6,133.51,44.17366353]
[1742436657025,258.32,133.6,133.52,4.0336]
[1742436657221,7.4843,133.59,133.54,7.4865]
[1742436657432,7.4843,133.59,133.55,27.18]
[1742436657628,258.32,133.6,133.55,27.18]
[1742436657830,7.485,133.57,133.55,27.18]
[1742436658031,7.485,133.57,133.56,0.04801741]
[1742436662630,7.4872,133.54,133.52,27.18]
[1742436663231,7.4873,133.53,133.52,27.18]
[1742436664437,7.54014425,133.54,133.52,27.18]
[1742436665339,0.05324425,133.54,133.52,27.18]
[1742436665538,0.05324425,133.54,133.52,29.1916]
[1742436667838,0.05324425,133.54,133.53,7.4873]
[1742436668442,0.05324425,133.54,133.52,29.1916]
[1742436669743,0.05324425,133.54,133.53,7.4873]
[1742436670837,0.05324425,133.54,133.52,36.6792]
[1742436671242,16.93764186,133.6,133.52,29.1916]
[1742436671444,44.09764186,133.64,133.58,7.4844]
[1742436671644,44.09764186,133.64,133.58,27.16]
[1742436671846,7.4834,133.6,133.58,27.16]
[1742436672241,16.93764186,133.62,133.53,4.0511]
[1742436672442,16.98651224,133.6,133.54,27.16]
[1742436672642,16.98651224,133.6,133.56,0.0526676]
[1742436673648,7.485,133.57,133.56,0.0526676]
[1742436675451,7.4879,133.52,133.5,27.16]
[1742436676651,7.54138269,133.52,133.5,27.20771325]
[1742436676854,0.05348269,133.52,133.5,27.20771325]
[1742436680053,0.05348269,133.52,133.5,34.69631325]
[1742436680251,0.05348269,133.52,133.5,27.20771325]
[1742436681549,0.05348269,133.52,133.51,7.4884]
[1742436681851,27.16,133.58,133.5,44.14535511]
[1742436682354,258.3,133.59,133.5,44.14535511]
[1742436682656,285.46,133.59,133.5,44.09764186]
[1742436682857,7.4848,133.58,133.54,7.4861]
[1742436683050,0.05250628,133.56,133.54,27.16]
[1742436684555,0.05250628,133.56,133.54,34.6466]
[1742436685352,7.53820628,133.56,133.54,27.16]
[1742436685754,0.05250628,133.56,133.54,27.16]
[1742436687369,7.53810628,133.56,133.54,27.16]
[1742436688557,7.4861,133.55,133.54,27.16]
[1742436688764,0.05250628,133.56,133.53,0.05338599]
[1742436689261,7.4861,133.55,133.53,0.05338599]
[1742436689455,44.15014814,133.56,133.53,0.05338599]
[1742436690463,7.4867,133.54,133.53,0.05338599]
[1742436695565,18.3407778,133.54,133.53,0.05338599]
[1742436697366,0.05250628,133.56,133.53,0.05338599]
[1742436699065,7.53830628,133.56,133.53,0.05338599]
[1742436699666,7.53830628,133.56,133.53,7.54058599]
[1742436700167,7.53830628,133.56,133.53,34.70058599]
[1742436701769,0.05250628,133.56,133.54,7.4865]
[1742436701961,0.05250628,133.56,133.53,38.06746379]
[1742436702463,0.05250628,133.56,133.54,7.4863]
[1742436702661,0.05250628,133.56,133.53,38.06746379]
[1742436703063,7.53810628,133.56,133.53,27.21338599]
[1742436703269,18.39218408,133.56,133.53,27.21338599]
[1742436703673,10.90658408,133.56,133.53,0.05338599]
[1742436704571,10.8540778,133.54,133.53,0.05338599]
[1742436705268,18.3407778,133.54,133.53,0.05338599]
[1742436707167,7.4867,133.54,133.53,0.05338599]
[1742436707867,0.05250628,133.56,133.53,0.05338599]
[1742436708073,0.05250628,133.56,133.54,27.16]
[1742436708268,0.05250628,133.56,133.55,18.3401778]
[1742436717782,0.05250628,133.56,133.53,10.90746379]
[1742436718082,0.05250628,133.56,133.53,27.21338599]
[1742436718480,7.53840628,133.56,133.53,27.21338599]
[1742436719780,7.53840628,133.56,133.53,7.54068599]
[1742436719986,7.53840628,133.56,133.54,27.16]
[1742436720385,7.4861,133.55,133.54,27.16]
[1742436721081,7.53830628,133.56,133.54,27.16]
[1742436722990,0.05250628,133.56,133.54,27.16]
[1742436723289,0.05250628,133.56,133.54,38.0140778]
[1742436724385,276.6769778,133.61,133.54,38.0140778]
[1742436724583,276.6769778,133.61,133.56,10.8540778]
[1742436724584,7.4829,133.61,133.56,10.8540778]
[1742436724786,7.4829,133.61,133.57,27.16]
[1742436725089,10.8540778,133.61,133.57,27.16]
[1742436725489,7.5354633,133.6,133.58,0.05113418]
[1742436726191,7.4839,133.59,133.58,0.05113418]
[1742436726488,18.3379778,133.59,133.58,0.05113418]
[1742436726990,7.4839,133.59,133.58,0.05113418]
[1742436731798,0.0516633,133.6,133.58,0.05113418]
[1742436732100,0.0516633,133.6,133.58,10.90521198]
[1742436732498,0.0516633,133.6,133.58,0.05113418]
[1742436733301,7.4839,133.59,133.58,0.05113418]
[1742436738208,34.6952633,133.6,133.58,0.05113418]
[1742436738406,7.5352633,133.6,133.58,0.05113418]
[1742436739508,7.4839,133.59,133.58,0.05113418]
[1742436744114,18.3379778,133.59,133.58,0.05113418]
[1742436745603,7.4839,133.59,133.58,0.05113418]
[1742436745805,7.5352633,133.6,133.58,0.05113418]
[1742436746210,0.0516633,133.6,133.58,0.05113418]
[1742436746411,7.5353633,133.6,133.58,0.05113418]
[1742436747103,0.0516633,133.6,133.58,0.05113418]
[1742436747304,0.0516633,133.6,133.59,7.4839]
[1742436747507,0.0516633,133.6,133.58,27.21113418]
[1742436748908,7.4839,133.59,133.58,27.21113418]
[1742436749209,7.4839,133.59,133.58,0.05113418]
[1742436749410,7.5352633,133.6,133.58,0.05113418]
[1742436750612,0.0516633,133.6,133.58,0.05113418]
[1742436752507,0.0516633,133.6,133.59,7.4839]
[1742436754615,5.61371644,133.68,133.6,10.8540778]
[1742436754819,10.8540778,133.7,133.64,10.8540778]
[1742436755116,7.4793,133.68,133.65,27.16]
[1742436755512,7.52743085,133.68,133.65,27.21163141]
[1742436755822,7.4796,133.67,133.65,27.21163141]
[1742436757521,7.48,133.66,133.65,27.21163141]
[1742436757819,7.48,133.66,133.65,0.05163141]
[1742436760517,7.4796,133.67,133.65,0.05163141]
[1742436761024,10.90220865,133.68,133.65,0.05163141]
[1742436761219,7.4794,133.67,133.65,0.05163141]
[1742436762320,10.90220865,133.68,133.65,0.05163141]
[1742436762522,7.48,133.66,133.65,0.05163141]
[1742436765724,7.4796,133.67,133.65,0.05163141]
[1742436766620,7.52723085,133.68,133.65,0.05163141]
[1742436767123,0.04813085,133.68,133.66,7.4799]
[1742436767721,0.04813085,133.68,133.66,34.6199]
[1742436768023,0.04813085,133.68,133.66,45.4739778]
[1742436768521,0.04813085,133.68,133.66,37.9940778]
[1742436769224,7.52703085,133.68,133.66,37.9940778]
[1742436769417,0.04813085,133.68,133.66,37.9940778]
[1742436769611,0.04813085,133.68,133.66,27.14]
[1742436769817,7.48,133.66,133.65,0.05163141]
[1742436772421,7.4796,133.67,133.65,0.05163141]
[1742436772718,0.04813085,133.68,133.65,27.19163141]
[1742436772924,0.04813085,133.68,133.66,10.8540778]
[1742436773124,0.04813085,133.68,133.65,27.19163141]
[1742436773326,0.04813085,133.68,133.65,38.04570921]
[1742436773523,10.8540778,133.67,133.65,0.05163141]
[1742436774227,7.48,133.66,133.65,0.05163141]
[1742436774629,34.62,133.66,133.65,0.05163141]
[1742436774930,7.4824,133.62,133.6,27.14]
[1742436775228,7.4807,133.65,133.61,10.8540778]
[1742436775426,27.14,133.66,133.61,10.8540778]
[1742436775826,10.8540778,133.65,133.62,0.0546828]
[1742436776021,10.90911323,133.65,133.62,0.0546828]
[1742436776430,7.4817,133.63,133.62,0.0546828]
[1742436778128,45.4757778,133.63,133.62,0.0546828]
[1742436778324,10.8540778,133.61,133.56,37.9940778]
[1742436778524,10.8540778,133.61,133.56,27.14]
[1742436778723,7.4834,133.6,133.57,10.8540778]
[1742436779332,37.9940778,133.63,133.57,10.8540778]
[1742436779632,0.05540879,133.6,133.57,10.91132399]
[1742436779824,0.05540879,133.6,133.57,18.39582399]
[1742436780019,0.05540879,133.6,133.57,10.91132399]
[1742436780225,0.05540879,133.6,133.59,10.8540778]
[1742436780525,0.05540879,133.6,133.59,37.9940778]
[1742436785035,0.05540879,133.6,133.59,45.4779778]
[1742436785233,0.05540879,133.6,133.59,37.9940778]
[1742436786932,0.05540879,133.6,133.59,27.14]
[1742436787534,7.4839,133.59,133.57,0.05724619]
[1742436788423,7.4845,133.58,133.57,0.05724619]
[1742436789238,18.3381778,133.59,133.57,0.05724619]
[1742436789428,10.8540778,133.59,133.57,0.05724619]
[1742436790036,7.4845,133.58,133.57,0.05724619]
[1742436792242,7.4872,133.54,133.5,37.9940778]
[1742436792631,7.4872,133.54,133.5,45.4826778]
[1742436793333,0.05497182,133.53,133.51,0.04746676]
[1742436794034,0.05497182,133.53,133.52,10.8540778]
[1742436794232,0.05497182,133.53,133.51,0.04746676]
[1742436794839,7.4878,133.52,133.51,0.04746676]
[1742436797239,7.54247182,133.53,133.51,0.04746676]
[1742436799842,7.4878,133.52,133.51,0.04746676]
[1742436800038,10.8540778,133.52,133.48,27.16]
[1742436800342,10.8540778,133.5,133.46,10.8540778]
[1742436800538,10.8540778,133.5,133.45,27.16]
[1742436800938,7.4907,133.47,133.45,27.16]
[1742436801238,7.4907,133.47,133.46,0.05053866]
[1742436801939,7.4903,133.48,133.46,0.05053866]
[1742436802338,0.04998073,133.49,133.46,0.05053866]
[1742436804642,0.04998073,133.49,133.47,7.4903]
[1742436804942,0.04998073,133.49,133.48,27.16]
[1742436806140,0.04998073,133.49,133.46,0.05053866]
[1742436806141,0.04998073,133.49,133.46,27.21053866]
[1742436806542,7.53968073,133.49,133.46,27.21053866]
[1742436807146,7.53968073,133.49,133.46,34.70153866]
[1742436807345,0.04998073,133.49,133.46,34.70153866]
[1742436807742,0.04998073,133.49,133.46,27.21053866]
[1742436807943,7.53958073,133.49,133.46,27.21053866]
[1742436808848,7.4901,133.48,133.46,27.21053866]
[1742436809946,7.53958073,133.49,133.46,27.21053866]
[1742436810146,0.04998073,133.49,133.46,27.21053866]
[1742436811150,0.04998073,133.49,133.46,0.05053866]
[1742436811347,0.04998073,133.49,133.47,27.16]
[1742436811550,7.53948073,133.49,133.47,27.16]
[1742436812550,0.04998073,133.49,133.47,27.16]
[1742436814046,7.53958073,133.49,133.47,27.16]
[1742436814247,0.04998073,133.49,133.47,27.16]
[1742436814451,7.4901,133.48,133.47,27.16]
[1742436814647,0.04998073,133.49,133.47,27.16]
[1742436815351,7.53968073,133.49,133.47,27.16]
[1742436816044,7.4901,133.48,133.47,27.16]
[1742436816247,7.4901,133.48,133.46,0.05053866]
[1742436816446,0.04998073,133.49,133.46,0.05053866]
[1742436816945,7.4906,133.47,133.46,0.05053866]
[1742436818451,0.04998073,133.49,133.46,0.05053866]
[1742436818843,7.53968073,133.49,133.46,0.05053866]
[1742436819348,0.04998073,133.49,133.46,7.54133866]
[1742436820052,7.53968073,133.49,133.46,7.54133866]
[1742436820254,0.04998073,133.49,133.46,0.05053866]
[1742436820753,7.4906,133.47,133.46,0.05053866]
[1742436822050,16.96950253,133.47,133.34,10.39752552]
[1742436822250,16.96950253,133.45,133.37,6.1159]
[1742436822453,44.12950253,133.47,133.37,33.2759]
[1742436822652,7.4928,133.44,133.4,7.4941]
[1742436822853,44.12950253,133.47,133.4,34.6541]
[1742436823244,7.4929,133.43,133.42,0.04965748]
[1742436823957,18.36325115,133.43,133.42,0.04965748]
[1742436825055,10.87035115,133.43,133.42,0.04965748]
[1742436825255,7.4924,133.44,133.42,0.04965748]
[1742436825654,10.92379638,133.45,133.42,0.04965748]
[1742436826851,0.05344523,133.45,133.42,0.04965748]
[1742436827555,7.54524523,133.45,133.42,0.04965748]
[1742436827753,0.05344523,133.45,133.42,0.04965748]
[1742436827955,0.05344523,133.45,133.43,38.05035115]
[1742436828557,0.05344523,133.45,133.44,7.4923]
[1742436828958,0.05344523,133.45,133.43,38.05035115]
[1742436829161,0.05344523,133.45,133.43,45.54295115]
[1742436830150,0.05344523,133.45,133.44,7.4923]
[1742436833461,0.05344523,133.45,133.43,45.54305115]
[1742436833765,0.05344523,133.45,133.43,34.6727]
[1742436835470,0.05344523,133.45,133.44,7.4923]
[1742436835776,0.05344523,133.45,133.43,27.18]
[1742436837972,0.05344523,133.45,133.43,34.6727]
[1742436838182,0.05344523,133.45,133.43,27.18]
[1742436839168,7.54524523,133.45,133.43,27.18]
[1742436840471,0.05344523,133.45,133.43,34.6728]
[1742436841274,0.05344523,133.45,133.43,27.18]
[1742436841873,0.05344523,133.45,133.43,34.6729]
[1742436842773,0.05344523,133.45,133.44,7.4923]
[1742436844271,10.87035115,133.5,133.47,7.4906]
[1742436844477,10.87035115,133.5,133.47,27.16]
[1742436845475,18.40762394,133.5,133.47,34.70210823]
[1742436845681,0.04797279,133.5,133.48,10.87035115]
[1742436846076,0.04797279,133.5,133.48,18.36015115]
[1742436846277,0.04797279,133.5,133.47,27.21170823]
[1742436847083,10.87035115,133.48,133.47,0.05170823]
[1742436847383,10.91832394,133.5,133.47,0.05170823]
[1742436848481,7.4901,133.48,133.47,0.05170823]
[1742436849682,0.04797279,133.5,133.47,0.05170823]
[1742436849882,10.87035115,133.49,133.47,0.05170823]
[1742436850381,7.4901,133.48,133.47,0.05170823]
[1742436853378,10.87035115,133.49,133.47,0.05170823]
[1742436853379,7.4896,133.49,133.47,0.05170823]
[1742436853781,0.04797279,133.5,133.47,0.05170823]
[1742436854084,7.4895,133.49,133.47,0.05170823]
[1742436854784,7.4901,133.48,133.47,0.05170823]
[1742436866695,18.36015115,133.49,133.47,0.05170823]
[1742436867492,7.4898,133.49,133.47,0.05170823]
[1742436868593,7.4901,133.48,133.47,0.05170823]
[1742436869299,0.04797279,133.5,133.47,0.05170823]